bitfinex/quotes_BTCUSD_20251110
["timestamp","ask_amount","ask_price","bid_price","bid_amount"]
[1762791131233,0.01126,105390.0,105380.0,0.97235146]
[1762791131493,0.01126,105390.0,105380.0,1.11785146]
[1762791131785,0.20103132,105390.0,105380.0,1.12163146]
[1762791131986,0.20103132,105390.0,105380.0,0.79485146]
[1762791132192,0.23937132,105390.0,105370.0,0.613346]
[1762791132347,0.20489933,105380.0,105370.0,0.2661626]
[1762791132528,0.22812933,105380.0,105370.0,0.0763555]
[1762791132962,0.22812933,105380.0,105370.0,0.26616284]
[1762791133143,0.20489933,105380.0,105370.0,0.26616284]
[1762791133352,0.01511,105380.0,105370.0,0.26616284]
[1762791133588,0.22812933,105380.0,105370.0,0.26616284]
[1762791133746,0.22812933,105380.0,105370.0,0.00387099]
[1762791133950,0.22812933,105380.0,105370.0,0.19467833]
[1762791134236,0.20103132,105390.0,105370.0,0.19467833]
[1762791134379,0.18978933,105380.0,105370.0,0.5637341]
[1762791134789,0.2604436,105390.0,105380.0,0.18978933]
[1762791135251,0.2755536,105390.0,105380.0,0.18978933]
[1762791135928,0.18978933,105380.0,105370.0,0.5637341]
[1762791136137,0.22812933,105380.0,105370.0,0.00109099]
[1762791136339,0.26431161,105380.0,105370.0,0.18989833]
[1762791136546,0.26431161,105380.0,105370.0,9.099e-05]
[1762791137220,0.26431161,105380.0,105370.0,0.18989833]
[1762791137815,0.26431161,105380.0,105370.0,9.099e-05]
[1762791138021,0.28199582,105380.0,105370.0,0.00109099]
[1762791138226,0.28199582,105380.0,105370.0,0.14659099]
[1762791139183,0.28199582,105380.0,105370.0,0.14559099]
[1762791139587,0.28299582,105380.0,105370.0,0.14559099]
[1762791142691,0.28299582,105380.0,105370.0,0.33539833]
[1762791143116,0.28299582,105380.0,105370.0,0.14559099]
[1762791147051,0.65205159,105380.0,105370.0,0.14559099]
[1762791147255,0.28299582,105380.0,105370.0,0.14559099]
[1762791148110,0.28299582,105380.0,105370.0,0.33539833]
[1762791148508,0.28299582,105380.0,105370.0,0.14559099]
[1762791148923,0.28299582,105380.0,105370.0,0.33539833]
[1762791149091,0.05702421,105380.0,105370.0,0.7044541]
[1762791149262,0.22912933,105380.0,105370.0,0.7044541]
[1762791149463,0.03934,105380.0,105370.0,0.33539833]
[1762791150050,0.22912933,105380.0,105370.0,0.33539833]
[1762791150226,0.03934,105380.0,105370.0,0.33539833]
[1762791151105,0.01611,105380.0,105370.0,0.7044541]
[1762791151502,0.01611,105380.0,105370.0,0.33539833]
[1762791151683,0.01611,105380.0,105370.0,0.38610146]
[1762791151849,0.2606036,105390.0,105380.0,0.18978933]
[1762791152298,0.2761136,105390.0,105380.0,0.18978933]
[1762791152633,0.02677,105390.0,105380.0,0.18978933]
[1762791152838,0.02677,105390.0,105380.0,0.79485146]
[1762791153040,0.01126,105390.0,105380.0,0.79863146]
[1762791153236,0.23410813,105410.0,105400.0,0.18975332]
[1762791153448,0.23410813,105410.0,105400.0,0.1455]
[1762791153591,0.24961813,105410.0,105400.0,0.1455]
[1762791153996,0.03641834,105410.0,105400.0,0.23978636]
[1762791154203,0.00023606,105410.0,105400.0,1.02593122]
[1762791154401,0.00023606,105410.0,105400.0,1.39963435]
[1762791154676,0.00223606,105410.0,105400.0,0.97987545]
[1762791155204,0.03003606,105410.0,105400.0,0.83348957]
[1762791155420,0.02803606,105410.0,105400.0,1.02324289]
[1762791155623,0.01252606,105410.0,105400.0,1.02324289]
[1762791155838,0.01252606,105410.0,105400.0,1.02702289]
[1762791156049,0.00423606,105410.0,105400.0,1.02702289]
[1762791156266,0.22177137,105410.0,105400.0,0.65418712]
[1762791156475,0.21777137,105410.0,105400.0,0.65418712]
[1762791156678,0.21777137,105410.0,105400.0,0.53634651]
[1762791156894,0.24116137,105410.0,105400.0,0.21434651]
[1762791158273,0.27734365,105410.0,105400.0,0.002]
[1762791158639,0.68411282,105410.0,105400.0,0.002]
[1762791158969,0.31505705,105410.0,105400.0,0.001]
[1762791159419,0.29505705,105410.0,105400.0,0.001]
[1762791159866,0.00023606,105410.0,105400.0,0.88936909]
[1762791159993,0.00123606,105410.0,105400.0,0.58826813]
[1762791160210,0.00123606,105410.0,105400.0,0.9573541]
[1762791160407,0.00123606,105410.0,105400.0,0.88936909]
[1762791161249,0.00123606,105410.0,105400.0,0.95735278]
[1762791162133,0.00023606,105410.0,105400.0,0.95735278]
[1762791162748,0.01252606,105410.0,105400.0,1.02010067]
[1762791162957,0.01252606,105410.0,105400.0,1.39671644]
[1762791162958,0.00023606,105410.0,105400.0,1.39671644]
[1762791163178,0.00023606,105410.0,105400.0,1.32873275]
[1762791163386,0.00023606,105410.0,105400.0,1.41386407]
[1762791163798,0.00023606,105410.0,105400.0,0.67575253]
[1762791164010,0.00023606,105410.0,105400.0,1.50437043]
[1762791164239,0.23525572,105450.0,105430.0,0.18968335]
[1762791164467,0.20235334,105450.0,105440.0,0.5625171]
[1762791164699,0.20235334,105450.0,105440.0,0.19346133]
[1762791164924,0.01269,105450.0,105440.0,0.19346133]
[1762791165150,0.20235334,105450.0,105440.0,0.19346133]
[1762791165597,0.21800706,105450.0,105440.0,0.26298149]
[1762791166307,0.22000706,105450.0,105440.0,0.26298149]
[1762791166531,0.22000706,105450.0,105440.0,0.35348785]
[1762791167420,0.22100706,105450.0,105440.0,0.35348785]
[1762791168564,0.22100706,105450.0,105440.0,0.26298149]
[1762791168772,0.03134372,105450.0,105440.0,0.26298149]
[1762791169176,0.00354372,105450.0,105440.0,0.26676149]
[1762791169383,0.01583372,105450.0,105440.0,0.72254362]
[1762791169726,0.22100706,105450.0,105440.0,0.72254362]
[1762791169928,0.22100706,105450.0,105440.0,0.07330016]
[1762791170068,0.22100706,105450.0,105440.0,0.35348785]
[1762791171740,0.22100706,105450.0,105440.0,0.72254362]
[1762791171885,0.24439706,105450.0,105440.0,0.16380652]
[1762791172087,0.24439706,105450.0,105440.0,0.07330016]
[1762791172287,0.24439706,105450.0,105440.0,0.16380652]
[1762791172729,0.19320706,105450.0,105440.0,0.72254362]
[1762791172943,0.22060706,105450.0,105440.0,0.72254362]
[1762791173150,0.22060706,105450.0,105440.0,0.80731191]
[1762791173790,0.24402706,105450.0,105440.0,0.80731191]
[1762791174294,0.24402706,105450.0,105440.0,0.61763058]
[1762791174499,0.24402706,105450.0,105440.0,0.80731191]
[1762791174668,0.24102706,105450.0,105440.0,0.80731191]
[1762791174870,0.24102706,105450.0,105440.0,0.61763058]
[1762791175207,0.24202706,105450.0,105440.0,0.61763058]
[1762791175416,0.24297093,105450.0,105440.0,0.77344405]
[1762791175610,0.24297093,105450.0,105440.0,0.40438828]
[1762791176007,0.24297093,105450.0,105440.0,0.21470695]
[1762791176536,0.24297093,105450.0,105440.0,0.21092695]
[1762791176659,0.24297093,105450.0,105440.0,0.12042059]
[1762791176869,0.24297093,105450.0,105440.0,0.24482351]
[1762791177274,0.24297093,105450.0,105440.0,0.21092695]
[1762791177654,0.24297093,105450.0,105440.0,0.40060828]
[1762791177868,0.24297093,105450.0,105440.0,0.21092695]
[1762791178051,0.24297093,105450.0,105440.0,0.12042059]
[1762791178479,0.22011093,105450.0,105440.0,0.12042059]
[1762791178690,0.24477093,105450.0,105440.0,0.12042059]
[1762791179104,0.24477093,105450.0,105440.0,0.05090043]
[1762791179309,0.24477093,105450.0,105440.0,0.19640043]
[1762791179944,0.28095321,105450.0,105440.0,0.23034154]
[1762791180151,0.28095321,105450.0,105440.0,0.23034377]
[1762791180362,0.00248759,105450.0,105440.0,0.83784909]
[1762791180568,0.00248759,105450.0,105440.0,0.86829998]
[1762791181009,0.00248759,105450.0,105440.0,0.06788794]
[1762791181010,0.05422759,105450.0,105440.0,0.06788794]
[1762791181213,0.24389093,105450.0,105440.0,0.06788794]
[1762791181375,0.05322759,105450.0,105440.0,0.42061872]
[1762791181593,0.24289093,105450.0,105440.0,0.42161872]
[1762791181752,0.24289093,105450.0,105440.0,0.14243103]
[1762791182185,0.24289093,105450.0,105440.0,0.33211236]
[1762791182538,0.24289093,105450.0,105440.0,0.14243103]
[1762791182659,0.24289093,105450.0,105440.0,0.33211236]
[1762791184271,0.24289093,105450.0,105440.0,0.14243103]
[1762791184426,0.24289093,105450.0,105440.0,0.33211236]
[1762791185542,0.24289093,105450.0,105440.0,0.14243103]
[1762791185949,0.24289093,105450.0,105440.0,0.33211236]
[1762791186944,0.24289093,105450.0,105440.0,0.14243103]
[1762791187148,0.24289093,105450.0,105440.0,0.33211236]
[1762791187566,0.24289093,105450.0,105440.0,0.14243103]
[1762791187964,0.29907321,105450.0,105440.0,0.06988794]
[1762791188211,0.31681953,105450.0,105440.0,0.05308712]
[1762791188972,0.8060205,105450.0,105440.0,0.05308712]
[1762791189674,0.8060205,105450.0,105440.0,0.05208712]
[1762791189862,0.8060205,105450.0,105440.0,0.05108712]
[1762791190509,1.23712222,105450.0,105440.0,0.03411594]
[1762791190708,1.13902049,105450.0,105440.0,0.08520306]
[1762791191146,1.13902049,105450.0,105440.0,0.03411594]
[1762791191339,1.13902049,105450.0,105440.0,0.08520306]
[1762791191539,0.63081953,105450.0,105440.0,0.08520306]
[1762791191764,0.63081953,105450.0,105440.0,0.05108712]
[1762791191765,0.29781953,105450.0,105440.0,0.05108712]
[1762791191964,0.26163725,105450.0,105440.0,0.25756927]
[1762791192292,0.28207321,105450.0,105440.0,0.25756927]
[1762791192690,0.28007321,105450.0,105440.0,0.25756927]
[1762791192892,0.28007321,105450.0,105440.0,0.18968133]
[1762791193386,0.05422759,105450.0,105440.0,0.18968133]
[1762791193795,0.24389093,105450.0,105440.0,0.18968133]
[1762791194036,0.05422759,105450.0,105440.0,0.27481265]
[1762791194240,0.24289093,105450.0,105440.0,0.27481265]
[1762791194411,0.27907321,105450.0,105440.0,0.15504979]
[1762791194614,0.29907321,105450.0,105440.0,0.08513132]
[1762791194814,0.22586361,105440.0,105430.0,0.20443888]
[1762791195041,0.26628361,105440.0,105430.0,0.20443888]
[1762791195250,0.18969932,105430.0,105420.0,0.08513132]
[1762791195443,0.2505416,105430.0,105420.0,0.08513132]
[1762791195622,0.2776216,105430.0,105420.0,0.08513132]
[1762791196070,0.18971732,105420.0,105410.0,0.47920806]
[1762791196281,0.23013732,105420.0,105410.0,0.47920806]
[1762791196480,0.2663196,105420.0,105410.0,0.08513132]
[1762791196705,0.2663196,105420.0,105410.0,0.06823266]
[1762791196879,0.2863196,105420.0,105410.0,0.06823266]
[1762791197082,0.30408377,105420.0,105410.0,0.06823266]
[1762791197286,0.2863196,105420.0,105410.0,0.06823266]
[1762791197668,0.22591759,105410.0,105400.0,0.13785035]
[1762791197876,0.25057759,105410.0,105400.0,0.06823266]
[1762791198070,0.27765759,105410.0,105400.0,0.06823266]
[1762791198607,0.27765759,105410.0,105400.0,0.18975332]
[1762791198778,0.08792228,105410.0,105400.0,0.18975332]
[1762791199014,0.02708,105410.0,105400.0,0.26206066]
[1762791199235,0.01132,105410.0,105400.0,0.94067931]
[1762791199456,0.02466,105420.0,105410.0,0.18973531]
[1762791199659,0.21437732,105420.0,105410.0,0.25786371]
[1762791199861,0.23013732,105420.0,105410.0,0.25786371]
[1762791200078,0.04042,105420.0,105410.0,0.25786371]
[1762791200286,0.01576,105420.0,105410.0,0.68893628]
[1762791200489,0.20547732,105420.0,105410.0,0.18973531]
[1762791201074,0.01576,105420.0,105410.0,0.18973531]
[1762791201445,0.01576,105420.0,105410.0,0.27486663]
[1762791203044,0.28428781,105420.0,105410.0,0.08513132]
[1762791203254,0.18973531,105410.0,105400.0,0.4152692]
[1762791203425,0.24151531,105410.0,105400.0,0.33013788]
[1762791203876,0.24151531,105410.0,105400.0,0.14038456]
[1762791204141,0.27769759,105410.0,105400.0,0.14038456]
[1762791204397,0.27769759,105410.0,105400.0,0.07230734]
[1762791204604,0.27769759,105410.0,105400.0,0.07330734]
[1762791204815,0.27769759,105410.0,105400.0,0.001]
[1762791205067,0.18975332,105400.0,105390.0,0.39107722]
[1762791205300,0.2659656,105400.0,105390.0,0.06807722]
[1762791205512,0.2659656,105400.0,105390.0,0.05107052]
[1762791205727,0.2659656,105400.0,105390.0,0.08512183]
[1762791206378,0.22978332,105400.0,105390.0,0.12146337]
[1762791207735,0.22978332,105400.0,105390.0,0.31123469]
[1762791208157,0.22978332,105400.0,105390.0,0.12146337]
[1762791208578,0.22978332,105400.0,105390.0,0.12246337]
[1762791209008,0.22978332,105400.0,105390.0,0.12146337]
[1762791209429,0.23078332,105400.0,105390.0,0.12146337]
[1762791209841,0.23078332,105400.0,105390.0,0.15342261]
[1762791210053,0.2669656,105400.0,105390.0,0.08302976]
[1762791212291,0.2669656,105400.0,105390.0,0.03400924]
[1762791213465,0.2669656,105400.0,105390.0,0.05950831]
[1762791214326,0.2869656,105400.0,105390.0,0.02549907]
[1762791214957,0.78616657,105400.0,105390.0,0.02549907]
[1762791215405,0.2259536,105390.0,105380.0,0.03400924]
[1762791215609,0.2777336,105390.0,105380.0,0.03400924]
[1762791217238,0.2777336,105390.0,105380.0,0.0595086]
[1762791217614,0.05178,105390.0,105380.0,0.22379857]
[1762791217796,0.05178,105390.0,105380.0,0.85135388]
[1762791217797,0.01175,105390.0,105380.0,0.85135388]
[1762791218452,0.01175,105390.0,105380.0,0.35215291]
[1762791218798,0.01275,105390.0,105380.0,0.35215291]
[1762791219209,0.20252132,105390.0,105380.0,0.35215291]
[1762791219439,0.20152132,105390.0,105380.0,0.35215291]
[1762791220301,0.01175,105390.0,105380.0,0.35215291]
[1762791221650,0.01175,105390.0,105380.0,0.85135388]
[1762791221890,0.20152132,105390.0,105380.0,0.85135388]
[1762791222092,0.21796132,105390.0,105380.0,0.15858358]
[1762791222301,0.24155132,105390.0,105380.0,0.34837291]
[1762791222508,0.24155132,105390.0,105380.0,0.15858358]
[1762791222715,0.18978933,105380.0,105370.0,0.5808825]
[1762791222921,0.22981933,105380.0,105370.0,0.39116821]
[1762791223131,0.22981933,105380.0,105370.0,0.58097555]
[1762791223338,0.20622933,105380.0,105370.0,0.51289833]
[1762791223558,0.01644,105380.0,105370.0,0.51289833]
[1762791223765,0.22981933,105380.0,105370.0,0.32309099]
[1762791223978,0.22981933,105380.0,105370.0,0.06816443]
[1762791224212,0.22981933,105380.0,105370.0,0.06916443]
[1762791224626,0.22981933,105380.0,105370.0,0.07016443]
[1762791225042,0.26600161,105380.0,105370.0,0.07016443]
[1762791225262,0.78520258,105380.0,105370.0,0.03616458]
[1762791225468,1.13592732,105380.0,105370.0,0.02555796]
[1762791225702,1.10592733,105380.0,105370.0,0.02555796]
[1762791225903,1.12592733,105380.0,105370.0,0.02555796]
[1762791226323,0.18980734,105370.0,105360.0,0.02555796]
[1762791226536,0.21348815,105370.0,105360.0,0.02555796]
[1762791226778,0.27939607,105370.0,105360.0,0.02555796]
[1762791226996,0.77859704,105370.0,105360.0,0.02555796]
[1762791227823,0.86863999,105370.0,105360.0,0.02555796]
[1762791228503,0.82477931,105370.0,105360.0,0.02555796]
[1762791228722,0.81477932,105370.0,105360.0,0.02555796]
[1762791228939,0.81677932,105370.0,105360.0,0.02555796]
[1762791229161,0.31757835,105370.0,105360.0,0.02555796]
[1762791229382,0.18982536,105360.0,105350.0,0.02737418]
[1762791229602,0.22985536,105360.0,105350.0,0.02737418]
[1762791230507,0.86334034,105360.0,105350.0,0.02737418]
[1762791230764,0.80292629,105360.0,105350.0,0.02737418]
[1762791231004,0.80392629,105360.0,105350.0,0.00181622]
[1762791231442,0.80492629,105360.0,105350.0,0.00181622]
[1762791232355,1.12792629,105360.0,105350.0,0.00181622]
[1762791233063,1.22602802,105360.0,105350.0,0.00181622]
[1762791233277,1.12792629,105360.0,105350.0,0.00181622]
[1762791235475,1.13792628,105360.0,105350.0,0.00181622]
[1762791236499,1.13692628,105360.0,105350.0,0.00181622]
[1762791236891,1.00930228,105360.0,105350.0,0.00181622]
[1762791237119,1.00830228,105360.0,105350.0,0.00181622]
[1762791237321,0.73682704,105360.0,105350.0,0.00181622]
[1762791237547,1.00030229,105360.0,105350.0,0.00181622]
[1762791237943,0.57454304,105360.0,105350.0,0.00181622]
[1762791238492,0.28772532,105360.0,105350.0,0.00181622]
[1762791239836,0.09789996,105360.0,105350.0,0.00181622]
[1762791240461,0.004,105360.0,105350.0,0.42118319]
[1762791240669,0.04537,105360.0,105350.0,0.00181622]
[1762791240903,0.08155228,105360.0,105350.0,0.00181622]
[1762791241124,0.45112925,105360.0,105350.0,0.00181622]
[1762791241347,0.46879433,105360.0,105350.0,0.00181622]
[1762791241572,0.09721736,105360.0,105350.0,0.00181622]
[1762791241799,0.46679433,105360.0,105350.0,0.00181622]
[1762791242048,0.46479433,105360.0,105350.0,0.00181622]
[1762791242252,0.46479433,105360.0,105350.0,0.00281622]
[1762791242654,0.09521736,105360.0,105350.0,0.00281622]
[1762791244058,0.09521736,105360.0,105350.0,0.00181622]
[1762791244257,0.09621736,105360.0,105350.0,0.00181622]
[1762791245365,0.13934408,105360.0,105350.0,0.00181622]
[1762791245573,0.11525557,105360.0,105350.0,0.00181622]
[1762791245792,0.11621736,105360.0,105350.0,0.00181622]
[1762791246205,0.09621736,105360.0,105350.0,0.00181622]
[1762791247893,0.01737,105360.0,105350.0,0.00181622]
[1762791248503,0.01737,105360.0,105350.0,0.87268899]
[1762791248504,0.001,105360.0,105350.0,0.87268899]
[1762791248714,9.081e-05,105370.0,105350.0,0.80266663]
[1762791248915,9.081e-05,105370.0,105360.0,0.55125504]
[1762791249193,9.081e-05,105370.0,105360.0,0.52751504]
[1762791249423,9.081e-05,105370.0,105360.0,0.10696636]
[1762791249651,9.081e-05,105370.0,105360.0,0.47654333]
[1762791249872,9.081e-05,105370.0,105360.0,0.54461677]
[1762791250693,9.081e-05,105370.0,105360.0,0.54661677]
[1762791251706,9.081e-05,105370.0,105360.0,0.54861677]
[1762791252536,9.081e-05,105370.0,105360.0,0.57235677]
[1762791253706,9.081e-05,105370.0,105360.0,0.71785677]
[1762791253902,9.081e-05,105370.0,105360.0,0.3482798]
[1762791254108,9.081e-05,105370.0,105360.0,0.78972889]
[1762791255681,9.081e-05,105370.0,105360.0,1.51677541]
[1762791255856,4.48e-06,105370.0,105360.0,1.43164409]
[1762791256254,4.48e-06,105370.0,105360.0,1.51668905]
[1762791258129,4.48e-06,105370.0,105360.0,1.44481693]
[1762791258949,4.48e-06,105370.0,105360.0,1.07523996]
[1762791260173,4.48e-06,105370.0,105360.0,1.44481693]
[1762791260318,4.48e-06,105370.0,105360.0,1.47287985]
[1762791260912,4.48e-06,105370.0,105360.0,1.47087985]
[1762791261160,4.48e-06,105370.0,105360.0,1.10130288]
[1762791261331,4.48e-06,105370.0,105360.0,1.31753996]
[1762791261538,4.48e-06,105370.0,105360.0,1.71402076]
[1762791261760,4.48e-06,105370.0,105360.0,1.68811693]
[1762791261937,4.48e-06,105370.0,105360.0,1.71402076]
[1762791262147,4.48e-06,105370.0,105360.0,1.69111693]
[1762791262455,4.48e-06,105370.0,105360.0,1.32153996]
[1762791262634,4.48e-06,105370.0,105360.0,1.71702076]
[1762791263086,4.48e-06,105370.0,105360.0,1.69111693]
[1762791263248,4.48e-06,105370.0,105360.0,1.60607197]
[1762791263661,4.48e-06,105370.0,105360.0,1.69111693]
[1762791264227,4.48e-06,105370.0,105360.0,1.60607197]
[1762791264411,4.48e-06,105370.0,105360.0,1.69111693]
[1762791264743,4.48e-06,105370.0,105360.0,1.71702076]
[1762791265235,4.48e-06,105370.0,105360.0,1.32153996]
[1762791265863,4.48e-06,105370.0,105360.0,1.38945701]
[1762791266118,4.48e-06,105370.0,105360.0,1.30441205]
[1762791266748,4.48e-06,105370.0,105360.0,1.30141205]
[1762791267160,4.48e-06,105370.0,105360.0,1.05911205]
[1762791267375,4.48e-06,105370.0,105360.0,0.991195]
[1762791267782,4.48e-06,105370.0,105360.0,0.989195]
[1762791268212,4.48e-06,105370.0,105360.0,1.09914379]
[1762791268633,4.48e-06,105370.0,105360.0,1.10114379]
[1762791268854,4.48e-06,105370.0,105360.0,1.09914379]
[1762791269273,4.48e-06,105370.0,105360.0,1.10214379]
[1762791270159,4.48e-06,105370.0,105360.0,1.10014379]
[1762791270372,4.48e-06,105370.0,105360.0,1.10314379]
[1762791270574,4.48e-06,105370.0,105360.0,1.07723996]
[1762791274748,4.48e-06,105370.0,105360.0,1.05349996]
[1762791276079,4.48e-06,105370.0,105360.0,1.05049996]
[1762791276277,4.48e-06,105370.0,105360.0,1.04949996]
[1762791276690,4.48e-06,105370.0,105360.0,1.05149996]
[1762791276847,4.48e-06,105370.0,105360.0,1.33168003]
[1762791277044,4.48e-06,105370.0,105360.0,1.32968003]
[1762791277370,4.48e-06,105370.0,105360.0,1.35448003]
[1762791277588,4.48e-06,105370.0,105360.0,1.32968003]
[1762791277758,4.48e-06,105370.0,105360.0,1.33168003]
[1762791278157,0.01218448,105370.0,105360.0,1.31426836]
[1762791278994,0.01192606,105370.0,105360.0,1.31426836]
[1762791279159,0.02835606,105370.0,105360.0,0.66451132]
[1762791279560,0.02835606,105370.0,105360.0,0.98938984]
[1762791279798,0.02835606,105370.0,105360.0,1.31426836]
[1762791280199,0.02835606,105370.0,105360.0,0.64805132]
[1762791280394,0.05253606,105370.0,105360.0,0.97292984]
[1762791280912,0.02835606,105370.0,105360.0,1.29780836]
[1762791281703,0.2181634,105370.0,105360.0,0.82742984]
[1762791281913,0.2423434,105370.0,105360.0,0.17955132]
[1762791282098,0.2423434,105370.0,105360.0,0.07230035]
[1762791282298,0.18980734,105370.0,105360.0,0.7822934]
[1762791282556,0.18980734,105370.0,105360.0,0.85056786]
[1762791282773,0.18980734,105370.0,105360.0,0.49888934]
[1762791282965,0.24259734,105370.0,105360.0,0.48365934]
[1762791283168,0.24259734,105370.0,105360.0,0.48465934]
[1762791283800,0.05279,105370.0,105360.0,0.48465934]
[1762791283955,0.05279,105370.0,105360.0,0.48565934]
[1762791284158,0.01218,105370.0,105360.0,0.50088934]
[1762791284330,0.05279,105370.0,105360.0,0.48565934]
[1762791284529,0.02861,105370.0,105360.0,0.48565934]
[1762791284738,0.21841734,105370.0,105360.0,0.48565934]
[1762791285782,0.24259734,105370.0,105360.0,0.07027446]
[1762791286190,0.27877962,105370.0,105360.0,0.07027446]
[1762791286397,0.27877962,105370.0,105360.0,0.05317756]
[1762791286606,0.21841734,105370.0,105360.0,0.17601082]
[1762791286805,0.21841734,105370.0,105360.0,0.50088934]
[1762791287224,0.21841734,105370.0,105360.0,0.49988934]
[1762791287433,0.21841734,105370.0,105360.0,0.48465934]
[1762791287639,0.21841734,105370.0,105360.0,0.48365934]
[1762791288046,0.24259734,105370.0,105360.0,0.39315298]
[1762791288403,0.21841734,105370.0,105360.0,0.32487852]
[1762791288589,0.21841734,105370.0,105360.0,0.39315298]
[1762791289033,0.24259734,105370.0,105360.0,0.06827446]
[1762791289378,0.24259734,105370.0,105360.0,0.15878082]
[1762791289550,0.21841734,105370.0,105360.0,0.15878082]
[1762791289958,0.24259734,105370.0,105360.0,0.15878082]
[1762791290157,0.21841734,105370.0,105360.0,0.15878082]
[1762791290992,0.24259734,105370.0,105360.0,0.15878082]
[1762791291339,0.18982536,105360.0,105350.0,0.87019698]
[1762791291563,0.18982536,105360.0,105350.0,0.76235202]
[1762791291914,0.18982536,105360.0,105350.0,1.00699589]
[1762791292469,0.18982536,105360.0,105350.0,0.81815252]
[1762791292702,0.18982536,105360.0,105350.0,0.96465252]
[1762791292903,0.18982536,105360.0,105350.0,1.15449589]
[1762791293186,0.18982536,105360.0,105350.0,1.06945093]
[1762791293411,0.18982536,105360.0,105350.0,0.87960756]
[1762791293610,0.18982536,105360.0,105350.0,0.51034622]
[1762791293806,0.18982536,105360.0,105350.0,0.85680756]
[1762791294007,0.20502536,105360.0,105350.0,0.55576622]
[1762791294232,0.18982536,105360.0,105350.0,0.92502756]
[1762791294552,0.18982536,105360.0,105350.0,0.85680756]
[1762791294901,0.18982536,105360.0,105350.0,1.06923093]
[1762791295106,0.20198734,105370.0,105350.0,1.06923093]
[1762791295107,0.18980734,105370.0,105350.0,1.15427589]
[1762791295331,0.18980734,105370.0,105360.0,0.17442781]
[1762791295517,0.20119734,105370.0,105360.0,0.17442781]
[1762791296409,0.20119734,105370.0,105360.0,0.31992781]
[1762791296730,0.18980734,105370.0,105360.0,0.90191451]
[1762791297500,0.18980734,105370.0,105360.0,0.71208915]
[1762791298134,0.18980734,105370.0,105360.0,0.90191451]
[1762791298552,0.18980734,105370.0,105360.0,0.71208915]
[1762791298918,0.55708228,105390.0,105360.0,0.90191451]
[1762791299157,0.52099088,105390.0,105380.0,0.58951817]
[1762791299423,0.52099088,105390.0,105380.0,1.06076553]
[1762791299618,0.52099088,105390.0,105380.0,1.17522283]
[1762791299827,0.52099088,105390.0,105380.0,1.14581049]
[1762791300268,0.7127622,105390.0,105380.0,1.14581049]
[1762791300484,0.7525422,105390.0,105380.0,0.09489496]
[1762791300689,0.7525422,105390.0,105380.0,0.06821884]
[1762791300895,0.7525422,105390.0,105380.0,0.25800817]
[1762791300896,0.53866088,105390.0,105380.0,0.25800817]
[1762791301102,0.7127622,105390.0,105380.0,0.38711453]
[1762791301351,0.52399088,105390.0,105380.0,1.20964073]
[1762791301545,0.52192325,105390.0,105380.0,1.14142189]
[1762791301753,0.52192325,105390.0,105380.0,1.22646685]
[1762791301754,0.52092325,105390.0,105380.0,1.22646685]
[1762791301962,0.52092325,105390.0,105380.0,0.70404065]
[1762791302572,0.71069457,105390.0,105380.0,0.70404065]
[1762791302760,0.72636457,105390.0,105380.0,0.51425132]
[1762791303043,0.72636457,105390.0,105380.0,0.48170478]
[1762791303257,0.72636457,105390.0,105380.0,0.15870478]
[1762791303465,0.75047457,105390.0,105380.0,0.06819842]
[1762791303674,0.18978933,105380.0,105370.0,0.07804842]
[1762791303894,0.18978933,105380.0,105370.0,0.26785576]
[1762791304143,0.18978933,105380.0,105370.0,0.28355576]
[1762791304348,0.71069457,105390.0,105370.0,0.30645576]
[1762791304764,0.71069457,105390.0,105380.0,0.09050636]
[1762791305160,0.75247457,105390.0,105380.0,0.09050636]
[1762791305367,0.52292325,105390.0,105380.0,0.31889569]
[1762791305570,0.52292325,105390.0,105380.0,1.20962031]
[1762791305749,0.52292325,105390.0,105380.0,1.14142189]
[1762791305971,0.37927165,105390.0,105380.0,1.14142189]
[1762791306127,0.38027165,105390.0,105380.0,1.14142189]
[1762791306537,0.37727165,105390.0,105380.0,1.26072945]
[1762791306701,0.11368922,105390.0,105380.0,1.29691173]
[1762791306910,0.10269044,105390.0,105380.0,0.76321862]
[1762791307103,0.10269044,105390.0,105380.0,1.26274482]
[1762791307307,0.09627228,105390.0,105380.0,1.26274482]
[1762791307669,0.00023604,105420.0,105410.0,0.60324167]
[1762791307923,0.00032692,105420.0,105410.0,0.62853167]
[1762791308107,0.00032692,105420.0,105410.0,0.65143167]
[1762791308960,0.00032692,105420.0,105410.0,1.15095787]
[1762791309141,0.00032692,105420.0,105410.0,1.21901505]
[1762791309339,0.00032692,105420.0,105410.0,1.2915432]
[1762791311075,0.00032692,105420.0,105410.0,1.2925432]
[1762791311284,0.00032692,105420.0,105410.0,1.2935432]
[1762791311419,0.00032692,105420.0,105410.0,1.22548602]
[1762791312831,0.00032692,105420.0,105410.0,0.72595982]
[1762791313053,0.00032692,105420.0,105410.0,1.22548602]
[1762791318594,0.00032692,105420.0,105410.0,0.63053167]
[1762791318820,0.19004424,105420.0,105410.0,0.63053167]
[1762791319043,0.20571424,105420.0,105410.0,0.29183167]
[1762791319279,0.20571424,105420.0,105410.0,0.42509636]
[1762791319492,0.20571424,105420.0,105410.0,0.10209636]
[1762791319707,0.20571424,105420.0,105410.0,0.42509636]
[1762791319930,0.00032692,105420.0,105410.0,0.77603167]
[1762791320149,0.19004424,105420.0,105410.0,0.77603167]
[1762791320359,0.00032692,105420.0,105410.0,1.27555787]
[1762791320557,0.20571424,105420.0,105410.0,1.27555787]
[1762791320738,0.20571424,105420.0,105410.0,1.25985787]
[1762791320978,0.20571424,105420.0,105410.0,0.57059636]
[1762791321185,0.01599692,105420.0,105410.0,0.61483167]
[1762791321390,0.00032692,105420.0,105410.0,1.15295787]
[1762791323180,0.00032692,105420.0,105410.0,1.20380199]
[1762791324225,0.00032692,105420.0,105410.0,1.22101505]
[1762791325717,0.00032692,105420.0,105410.0,1.36651505]
[1762791326478,0.00032692,105420.0,105410.0,1.39592739]
[1762791327070,0.00032692,105420.0,105410.0,1.41301086]
[1762791327471,0.00032692,105420.0,105410.0,1.38359852]
[1762791330960,0.00032692,105420.0,105410.0,1.53294458]
[1762791331747,0.01179,105450.0,105440.0,0.18968133]
[1762791331888,0.20154421,105450.0,105440.0,0.47635248]
[1762791332097,0.23538855,105450.0,105440.0,0.47635248]
[1762791332299,0.25868855,105450.0,105440.0,0.14517308]
[1762791332531,0.29488069,105450.0,105440.0,0.14517308]
[1762791332732,0.29488069,105450.0,105430.0,0.05099171]
[1762791332733,0.22586361,105440.0,105430.0,0.05099171]
[1762791333096,0.18969932,105430.0,105410.0,0.40497351]
[1762791333214,0.25865352,105430.0,105420.0,0.05099171]
[1762791333462,0.21917352,105430.0,105420.0,0.05099171]
[1762791333664,0.23535352,105430.0,105420.0,0.05099171]
[1762791334180,0.18971732,105420.0,105410.0,1.04292578]
[1762791334384,0.0176742,105420.0,105410.0,1.05992302]
[1762791334616,0.0176742,105420.0,105410.0,1.07550302]
[1762791334824,0.22679932,105430.0,105420.0,0.18971732]
[1762791335099,0.24449895,105430.0,105420.0,0.24080588]
[1762791335252,0.22119895,105430.0,105420.0,0.49206532]
[1762791335456,0.26067895,105430.0,105420.0,0.14517308]
[1762791335626,0.26067895,105430.0,105420.0,0.19632675]
[1762791336454,0.26167895,105430.0,105420.0,0.19632675]